[Event "Late-Titled-Tuesday-Blitz-June-18-2024"]
[Site "Chess.com"]
[Date "2024.06.18"]
[Round "1"]
[White "vesalhamedinia"]
[Black "tptagain"]
[Result "0-1"]
[WhiteElo "2501"]
[BlackElo "2952"]
[TimeControl "180+1"]
[EndTime "14:05:20 PDT"]
[Termination "tptagain won by resignation"]

1. d4 {[%clk 0:03:00.9]} 1... d5 {[%clk 0:02:59.7]} 2. c4 {[%clk 0:03:01]} 2...
e6 {[%clk 0:03:00.1]} 3. Nc3 {[%clk 0:02:59.8]} 3... c6 {[%clk 0:02:59.5]} 4.
cxd5 {[%clk 0:02:58.2]} 4... exd5 {[%clk 0:02:59.4]} 5. Qc2 {[%clk 0:02:58.3]}
5... g6 {[%clk 0:02:49.7]} 6. Bf4 {[%clk 0:02:41.7]} 6... Bf5 {[%clk 0:02:48.5]}
7. Qb3 {[%clk 0:02:37.6]} 7... Qb6 {[%clk 0:02:48.6]} 8. e3 {[%clk 0:02:26.2]}
8... Nd7 {[%clk 0:02:44.3]} 9. Nf3 {[%clk 0:02:24.9]} 9... Qxb3 {[%clk
0:02:42.9]} 10. axb3 {[%clk 0:02:24.6]} 10... Ngf6 {[%clk 0:02:40.2]} 11. Be2
{[%clk 0:02:17]} 11... Bc2 {[%clk 0:02:36.5]} 12. Nd2 {[%clk 0:02:12.5]} 12...
h6 {[%clk 0:02:29.1]} 13. h4 {[%clk 0:02:10.1]} 13... Bb4 {[%clk 0:02:23]} 14.
Rc1 {[%clk 0:01:49.7]} 14... Bf5 {[%clk 0:02:22.1]} 15. f3 {[%clk 0:01:47.9]}
15... h5 {[%clk 0:02:17.3]} 16. Kf2 {[%clk 0:01:42.5]} 16... Kf8 {[%clk
0:02:06]} 17. Rhd1 {[%clk 0:01:38.6]} 17... Kg7 {[%clk 0:02:05.7]} 18. Na2
{[%clk 0:01:27.2]} 18... Be7 {[%clk 0:02:05.2]} 19. b4 {[%clk 0:01:22.6]} 19...
a6 {[%clk 0:02:04.4]} 20. Nb3 {[%clk 0:01:22.3]} 20... Ne8 {[%clk 0:01:57]} 21.
Na5 {[%clk 0:01:05.5]} 21... Ra7 {[%clk 0:01:55.7]} 22. Nc3 {[%clk 0:01:00.9]}
22... Bxb4 {[%clk 0:01:51.4]} 23. Nb3 {[%clk 0:00:59]} 23... Be6 {[%clk
0:01:47.4]} 24. Na4 {[%clk 0:00:56.1]} 24... Be7 {[%clk 0:01:46.1]} 25. Nac5
{[%clk 0:00:53.4]} 25... Nxc5 {[%clk 0:01:43.5]} 26. Nxc5 {[%clk 0:00:54.3]}
26... Bxh4+ {[%clk 0:01:43]} 27. g3 {[%clk 0:00:51.8]} 27... Be7 {[%clk
0:01:43.9]} 28. b4 {[%clk 0:00:47.5]} 28... Bc8 {[%clk 0:01:36.5]} 29. Be5+
{[%clk 0:00:39.9]} 29... f6 {[%clk 0:01:35.8]} 30. Bb8 {[%clk 0:00:37.2]} 30...
Ra8 {[%clk 0:01:35.8]} 31. Bf4 {[%clk 0:00:34.6]} 31... g5 {[%clk 0:01:36.1]}
0-1

[Event "Late-Titled-Tuesday-Blitz-June-18-2024"]
[Site "Chess.com"]
[Date "2024.06.18"]
[Round "1"]
[White "el_sporco"]
[Black "marvinguevara"]
[Result "1-0"]
[WhiteElo "2572"]
[BlackElo "2149"]
[TimeControl "180+1"]
[EndTime "14:05:28 PDT"]
[Termination "el_sporco won by resignation"]

1. e4 {[%clk 0:02:49.5]} 1... c5 {[%clk 0:02:55]} 2. Nf3 {[%clk 0:02:49.7]} 2...
Nc6 {[%clk 0:02:54.2]} 3. d4 {[%clk 0:02:49]} 3... cxd4 {[%clk 0:02:55.1]} 4.
Nxd4 {[%clk 0:02:49.7]} 4... e5 {[%clk 0:02:55.4]} 5. Nb5 {[%clk 0:02:49.5]}
5... a6 {[%clk 0:02:56]} 6. Nd6+ {[%clk 0:02:48.5]} 6... Bxd6 {[%clk 0:02:56.4]}
7. Qxd6 {[%clk 0:02:49.4]} 7... Qf6 {[%clk 0:02:56.7]} 8. Qxf6 {[%clk
0:02:42.6]} 8... Nxf6 {[%clk 0:02:57.6]} 9. Bd3 {[%clk 0:02:43.1]} 9... O-O
{[%clk 0:02:37.4]} 10. O-O {[%clk 0:02:42.7]} 10... d5 {[%clk 0:02:37.1]} 11.
Nc3 {[%clk 0:02:41.1]} 11... d4 {[%clk 0:02:29.9]} 12. Nd5 {[%clk 0:02:40.6]}
12... Nxd5 {[%clk 0:02:28.3]} 13. exd5 {[%clk 0:02:41.5]} 13... Nb4 {[%clk
0:02:28]} 14. Re1 {[%clk 0:02:40.3]} 14... Nxd3 {[%clk 0:02:24.4]} 15. cxd3
{[%clk 0:02:41.2]} 15... f6 {[%clk 0:02:24.5]} 16. f4 {[%clk 0:02:40]} 16... Bf5
{[%clk 0:02:23.1]} 17. fxe5 {[%clk 0:02:36]} 17... fxe5 {[%clk 0:02:24]} 18.
Rxe5 {[%clk 0:02:35.8]} 18... Bxd3 {[%clk 0:02:23]} 19. Bd2 {[%clk 0:02:35.6]}
19... Rae8 {[%clk 0:02:22.3]} 20. Re6 {[%clk 0:02:27.7]} 20... Bc4 {[%clk
0:02:19.3]} 21. Rae1 {[%clk 0:02:20.5]} 21... Rxe6 {[%clk 0:02:17.7]} 22. dxe6
{[%clk 0:02:21.4]} 22... Re8 {[%clk 0:02:17.7]} 23. e7 {[%clk 0:02:18.8]} 23...
h6 {[%clk 0:02:16.2]} 24. Bb4 {[%clk 0:02:18.9]} 24... d3 {[%clk 0:02:15.4]} 25.
Re4 {[%clk 0:02:18.2]} 25... Bxa2 {[%clk 0:02:14.2]} 26. Rd4 {[%clk 0:02:17.7]}
26... Bb1 {[%clk 0:02:13.4]} 27. Rd7 {[%clk 0:02:15]} 27... b6 {[%clk
0:02:02.4]} 28. Kf2 {[%clk 0:02:03.8]} 28... a5 {[%clk 0:02:01]} 29. Ba3 {[%clk
0:02:03.6]} 29... b5 {[%clk 0:01:55.1]} 30. Bc5 {[%clk 0:02:00.3]} 30... Kf7
{[%clk 0:01:50]} 31. Ke3 {[%clk 0:01:59.7]} 31... Ke6 {[%clk 0:01:48.3]} 32. Rd8
{[%clk 0:01:58]} 32... Kf7 {[%clk 0:01:44.9]} 33. Kd2 {[%clk 0:01:55]} 33... g5
{[%clk 0:01:30.3]} 34. h4 {[%clk 0:01:44.3]} 34... gxh4 {[%clk 0:01:29.6]} 35.
Rd4 {[%clk 0:01:43.3]} 35... Ke6 {[%clk 0:01:28.6]} 36. Rxh4 {[%clk 0:01:38.3]}
36... Kd5 {[%clk 0:01:25.5]} 37. Rh5+ {[%clk 0:01:37]} 37... Kc6 {[%clk
0:01:24.8]} 38. b4 {[%clk 0:01:36.7]} 38... a4 {[%clk 0:01:23.2]} 39. Rxh6+
{[%clk 0:01:36.9]} 39... Kd5 {[%clk 0:01:20.5]} 40. Rd6+ {[%clk 0:01:37.2]}
40... Kc4 {[%clk 0:01:02.6]} 41. Rd8 {[%clk 0:01:38.1]} 41... Rxe7 {[%clk
0:01:01.1]} 42. Bxe7 {[%clk 0:01:39]} 42... a3 {[%clk 0:01:01.2]} 43. Ra8 {[%clk
0:01:37.9]} 43... a2 {[%clk 0:01:01.4]} 44. g4 {[%clk 0:01:36.9]} 44... Kd5
{[%clk 0:01:00.7]} 45. Ra6 {[%clk 0:01:32.7]} 45... Ke5 {[%clk 0:00:59.9]} 46.
g5 {[%clk 0:01:33]} 1-0

[Event "Late-Titled-Tuesday-Blitz-June-18-2024"]
[Site "Chess.com"]
[Date "2024.06.18"]
[Round "1"]
[White "rhungaski"]
[Black "Cacriefils1984"]
[Result "1-0"]
[WhiteElo "2612"]
[BlackElo "2261"]
[TimeControl "180+1"]
[EndTime "14:05:29 PDT"]
[Termination "rhungaski won by checkmate"]

1. Nf3 {[%clk 0:02:57.1]} 1... Nf6 {[%clk 0:02:59.7]} 2. c4 {[%clk 0:02:56.8]}
2... g6 {[%clk 0:03:00.4]} 3. Nc3 {[%clk 0:02:56]} 3... Bg7 {[%clk 0:03:01.3]}
4. e4 {[%clk 0:02:56.5]} 4... d6 {[%clk 0:03:01.9]} 5. d4 {[%clk 0:02:57]} 5...
O-O {[%clk 0:03:02.6]} 6. Be2 {[%clk 0:02:56.9]} 6... e5 {[%clk 0:03:02.8]} 7.
d5 {[%clk 0:02:57.3]} 7... a5 {[%clk 0:03:02.5]} 8. Bg5 {[%clk 0:02:57.3]} 8...
h6 {[%clk 0:03:02]} 9. Bh4 {[%clk 0:02:57.7]} 9... Na6 {[%clk 0:03:00.7]} 10.
Nd2 {[%clk 0:02:57.6]} 10... Bd7 {[%clk 0:02:57.9]} 11. Rb1 {[%clk 0:02:54.3]}
11... Nc5 {[%clk 0:02:57.2]} 12. f3 {[%clk 0:02:52.2]} 12... g5 {[%clk
0:02:47.4]} 13. Bf2 {[%clk 0:02:51.2]} 13... b6 {[%clk 0:02:48]} 14. b3 {[%clk
0:02:51]} 14... Nh5 {[%clk 0:02:46.9]} 15. g3 {[%clk 0:02:50.4]} 15... Bh3
{[%clk 0:02:36.8]} 16. a3 {[%clk 0:02:45.5]} 16... Qd7 {[%clk 0:02:28.3]} 17. b4
{[%clk 0:02:42.1]} 17... axb4 {[%clk 0:02:28.4]} 18. axb4 {[%clk 0:02:43]} 18...
Na4 {[%clk 0:02:27.8]} 19. Nb5 {[%clk 0:02:41.6]} 19... f5 {[%clk 0:02:06.1]}
20. Qc2 {[%clk 0:02:30.2]} 20... fxe4 {[%clk 0:01:52.5]} 21. Nxe4 {[%clk
0:02:24.6]} 21... Nf6 {[%clk 0:01:52.8]} 22. Ra1 {[%clk 0:02:05.3]} 22... Nxe4
{[%clk 0:01:47.1]} 23. fxe4 {[%clk 0:02:03.6]} 23... Bg2 {[%clk 0:01:16.5]} 24.
Rg1 {[%clk 0:02:02.1]} 24... Bxe4 {[%clk 0:01:17.1]} 25. Qxe4 {[%clk 0:01:58.1]}
25... Nc3 {[%clk 0:01:17.7]} 26. Nxc3 {[%clk 0:01:52.2]} 26... Rxa1+ {[%clk
0:01:16.9]} 27. Kd2 {[%clk 0:01:52.9]} 27... Ra3 {[%clk 0:01:06]} 28. Be3 {[%clk
0:01:45.4]} 28... Rfa8 {[%clk 0:01:03.2]} 29. Bd3 {[%clk 0:01:41.4]} 29... Bh8
{[%clk 0:00:58.4]} 30. Qg6+ {[%clk 0:01:39.4]} 30... Qg7 {[%clk 0:00:58.6]} 31.
Qe6+ {[%clk 0:01:39.5]} 31... Qf7 {[%clk 0:00:58.9]} 32. Be4 {[%clk 0:01:31.9]}
32... Qxe6 {[%clk 0:00:54.4]} 33. dxe6 {[%clk 0:01:32.8]} 33... Re8 {[%clk
0:00:51.4]} 34. Rf1 {[%clk 0:01:28.4]} 34... Bg7 {[%clk 0:00:46.3]} 35. Bd5
{[%clk 0:01:26]} 35... Kh7 {[%clk 0:00:45.3]} 36. Rf7 {[%clk 0:01:24.2]} 36...
Kg6 {[%clk 0:00:42.8]} 37. g4 {[%clk 0:01:22.4]} 37... c6 {[%clk 0:00:39.7]} 38.
Be4# {[%clk 0:01:22.6]} 1-0

[Event "Late-Titled-Tuesday-Blitz-June-18-2024"]
[Site "Chess.com"]
[Date "2024.06.18"]
[Round "1"]
[White "Patricius007"]
[Black "protectiago"]
[Result "1-0"]
[WhiteElo "2565"]
[BlackElo "2132"]
[TimeControl "180+1"]
[EndTime "14:05:34 PDT"]
[Termination "Patricius007 won on time"]

1. e4 {[%clk 0:02:59.3]} 1... e5 {[%clk 0:02:56.6]} 2. Nf3 {[%clk 0:02:59.1]}
2... Nc6 {[%clk 0:02:56.3]} 3. Bc4 {[%clk 0:02:58.6]} 3... Bc5 {[%clk
0:02:55.2]} 4. d3 {[%clk 0:02:58.3]} 4... Nf6 {[%clk 0:02:55.3]} 5. O-O {[%clk
0:02:57.4]} 5... d6 {[%clk 0:02:54.6]} 6. c3 {[%clk 0:02:57.7]} 6... Bb6 {[%clk
0:02:54.3]} 7. h3 {[%clk 0:02:58]} 7... a5 {[%clk 0:02:49.8]} 8. Nbd2 {[%clk
0:02:57.2]} 8... Ne7 {[%clk 0:02:38.7]} 9. Re1 {[%clk 0:02:56.2]} 9... Ng6
{[%clk 0:02:38.3]} 10. Nf1 {[%clk 0:02:54.3]} 10... O-O {[%clk 0:02:30.3]} 11.
Be3 {[%clk 0:02:53.3]} 11... c6 {[%clk 0:02:29.3]} 12. a4 {[%clk 0:02:51.5]}
12... Bc7 {[%clk 0:02:15.4]} 13. Ng3 {[%clk 0:02:49.5]} 13... d5 {[%clk
0:02:12.3]} 14. Bb3 {[%clk 0:02:45.9]} 14... Re8 {[%clk 0:01:59.8]} 15. Qc2
{[%clk 0:02:40.7]} 15... Be6 {[%clk 0:01:49.1]} 16. Rad1 {[%clk 0:02:39.6]}
16... Qb8 {[%clk 0:01:45.8]} 17. Ng5 {[%clk 0:02:38.2]} 17... Nf4 {[%clk
0:01:37]} 18. Nxe6 {[%clk 0:02:35.8]} 18... Nxe6 {[%clk 0:01:16.1]} 19. Nf5
{[%clk 0:02:31]} 19... dxe4 {[%clk 0:00:18.8]} 20. dxe4 {[%clk 0:02:30.8]} 20...
b5 {[%clk 0:00:17.5]} 21. Rd2 {[%clk 0:02:19.8]} 21... b4 {[%clk 0:00:15]} 22.
Red1 {[%clk 0:02:19.6]} 22... bxc3 {[%clk 0:00:14.1]} 23. bxc3 {[%clk
0:02:20.5]} 23... Qb7 {[%clk 0:00:12.6]} 24. Nd6 {[%clk 0:02:16.8]} 24... Bxd6
{[%clk 0:00:12.2]} 25. Rxd6 {[%clk 0:02:17.7]} 25... Rab8 {[%clk 0:00:12.6]} 26.
Bxe6 {[%clk 0:02:16.1]} 26... Rxe6 {[%clk 0:00:11.5]} 27. Rxe6 {[%clk
0:02:16.3]} 27... fxe6 {[%clk 0:00:12]} 28. Qa2 {[%clk 0:02:15.1]} 28... Qb3
{[%clk 0:00:12]} 29. Rd8+ {[%clk 0:02:09.6]} 29... Kf7 {[%clk 0:00:03.7]} 30.
Qd2 {[%clk 0:02:10.1]} 30... Rxd8 {[%clk 0:00:02]} 31. Qxd8 {[%clk 0:02:10.7]}
31... Qxc3 {[%clk 0:00:02.5]} 32. Qc7+ {[%clk 0:02:08.6]} 32... Kg6 {[%clk
0:00:02]} 33. Qc8 {[%clk 0:02:03.4]} 33... Qa1+ {[%clk 0:00:02.1]} 34. Kh2
{[%clk 0:02:03.3]} 34... Qxa4 {[%clk 0:00:02.8]} 35. f3 {[%clk 0:02:01]} 35...
Qb5 {[%clk 0:00:01.8]} 36. Qxe6 {[%clk 0:02:00.7]} 36... a4 {[%clk 0:00:01.8]}
37. h4 {[%clk 0:02:00.6]} 37... h6 {[%clk 0:00:01.4]} 38. h5+ {[%clk 0:01:59]}
1-0

[Event "Late-Titled-Tuesday-Blitz-June-18-2024"]
[Site "Chess.com"]
[Date "2024.06.18"]
[Round "1"]
[White "xakevicius91"]
[Black "KebabJangles"]
[Result "1-0"]
[WhiteElo "2626"]
[BlackElo "2297"]
[TimeControl "180+1"]
[EndTime "14:05:38 PDT"]
[Termination "xakevicius91 won by checkmate"]

1. e4 {[%clk 0:02:59.9]} 1... c5 {[%clk 0:02:58.6]} 2. Nf3 {[%clk 0:03:00.2]}
2... e6 {[%clk 0:02:58.3]} 3. b3 {[%clk 0:02:59.9]} 3... Nc6 {[%clk 0:02:55.7]}
4. Bb2 {[%clk 0:02:59.1]} 4... d6 {[%clk 0:02:55.7]} 5. d4 {[%clk 0:02:56.7]}
5... cxd4 {[%clk 0:02:55.5]} 6. Nxd4 {[%clk 0:02:57.6]} 6... Nf6 {[%clk
0:02:55.6]} 7. Bd3 {[%clk 0:02:56]} 7... Be7 {[%clk 0:02:53.8]} 8. O-O {[%clk
0:02:49.2]} 8... O-O {[%clk 0:02:49.1]} 9. Nxc6 {[%clk 0:02:49.1]} 9... bxc6
{[%clk 0:02:47.7]} 10. e5 {[%clk 0:02:50]} 10... Nd5 {[%clk 0:02:42.9]} 11. Qf3
{[%clk 0:02:42.2]} 11... f6 {[%clk 0:02:39.5]} 12. exd6 {[%clk 0:02:40.7]} 12...
Bxd6 {[%clk 0:02:40.4]} 13. Nd2 {[%clk 0:02:39.2]} 13... Nf4 {[%clk 0:02:39.5]}
14. Nc4 {[%clk 0:02:29.5]} 14... Bc7 {[%clk 0:02:32.8]} 15. Rad1 {[%clk
0:02:27.2]} 15... Qe8 {[%clk 0:02:30.7]} 16. Be4 {[%clk 0:02:24.8]} 16... Bb7
{[%clk 0:02:28.4]} 17. Nd6 {[%clk 0:02:23]} 17... Bxd6 {[%clk 0:02:26.9]} 18.
Rxd6 {[%clk 0:02:23.2]} 18... Nd5 {[%clk 0:02:27.8]} 19. c4 {[%clk 0:02:18.9]}
19... Ne7 {[%clk 0:02:16.2]} 20. Rxe6 {[%clk 0:02:07.1]} 20... Qd7 {[%clk
0:02:15.3]} 21. Re1 {[%clk 0:02:02.7]} 21... Rae8 {[%clk 0:01:49.5]} 22. Bb1
{[%clk 0:01:47.2]} 22... c5 {[%clk 0:01:47.6]} 23. Qh3 {[%clk 0:01:43.3]} 23...
Ng6 {[%clk 0:01:40.3]} 24. Bf5 {[%clk 0:01:20.7]} 24... Qf7 {[%clk 0:00:16.4]}
25. Bc3 {[%clk 0:01:14]} 25... Nf4 {[%clk 0:00:14.8]} 26. Qxh7# {[%clk
0:01:12.6]} 1-0

[Event "Late-Titled-Tuesday-Blitz-June-18-2024"]
[Site "Chess.com"]
[Date "2024.06.18"]
[Round "1"]
[White "madmax011"]
[Black "slidingknight2775"]
[Result "0-1"]
[WhiteElo "2387"]
[BlackElo "2712"]
[TimeControl "180+1"]
[EndTime "14:05:40 PDT"]
[Termination "slidingknight2775 won by resignation"]

1. d4 {[%clk 0:03:00.9]} 1... Nf6 {[%clk 0:02:58.7]} 2. c4 {[%clk 0:02:59.7]}
2... e6 {[%clk 0:02:54.3]} 3. Nc3 {[%clk 0:02:58.9]} 3... Bb4 {[%clk 0:02:54.5]}
4. e3 {[%clk 0:02:58.7]} 4... O-O {[%clk 0:02:54.7]} 5. Bd3 {[%clk 0:02:59.1]}
5... d5 {[%clk 0:02:55.4]} 6. Nf3 {[%clk 0:02:55.7]} 6... dxc4 {[%clk
0:02:55.6]} 7. Bxc4 {[%clk 0:02:55.7]} 7... c5 {[%clk 0:02:56.3]} 8. O-O {[%clk
0:02:55.8]} 8... cxd4 {[%clk 0:02:55.8]} 9. exd4 {[%clk 0:02:55.9]} 9... b6
{[%clk 0:02:56.2]} 10. a3 {[%clk 0:02:53.8]} 10... Bxc3 {[%clk 0:02:54.2]} 11.
bxc3 {[%clk 0:02:54]} 11... Qc7 {[%clk 0:02:49.3]} 12. Ne5 {[%clk 0:02:40.4]}
12... Nbd7 {[%clk 0:02:44.6]} 13. Qe2 {[%clk 0:02:33.9]} 13... Bb7 {[%clk
0:02:32.7]} 14. Bd2 {[%clk 0:02:26.5]} 14... Nxe5 {[%clk 0:02:27.9]} 15. dxe5
{[%clk 0:02:26.1]} 15... Nd5 {[%clk 0:02:28.5]} 16. Rac1 {[%clk 0:02:21]} 16...
Qc5 {[%clk 0:02:17.9]} 17. a4 {[%clk 0:02:04.5]} 17... Ne7 {[%clk 0:02:06.3]}
18. Bd3 {[%clk 0:02:00.9]} 18... Ng6 {[%clk 0:02:00.1]} 19. Rfe1 {[%clk
0:01:47.8]} 19... Rfd8 {[%clk 0:01:57.2]} 20. h4 {[%clk 0:01:44.4]} 20... Qd5
{[%clk 0:01:41.8]} 21. Be4 {[%clk 0:01:26.6]} 21... Qxe4 {[%clk 0:01:41.7]} 22.
Qxe4 {[%clk 0:01:26.3]} 22... Bxe4 {[%clk 0:01:42.6]} 23. Rxe4 {[%clk
0:01:26.7]} 23... Rxd2 {[%clk 0:01:41.1]} 24. h5 {[%clk 0:01:26.1]} 24... Ne7
{[%clk 0:01:39.5]} 25. c4 {[%clk 0:01:26.1]} 25... Rc8 {[%clk 0:01:38.1]} 26.
Ra1 {[%clk 0:01:19.1]} 26... Rc5 {[%clk 0:01:30.3]} 27. f4 {[%clk 0:01:16.5]}
27... g6 {[%clk 0:01:22.3]} 28. h6 {[%clk 0:01:16.2]} 28... Nf5 {[%clk
0:01:21.8]} 29. Kh2 {[%clk 0:01:05]} 29... Nxh6 {[%clk 0:01:20.3]} 30. Kh3
{[%clk 0:01:01]} 30... Nf5 {[%clk 0:01:17.5]} 31. Ra3 {[%clk 0:00:58]} 31... h5
{[%clk 0:01:17]} 32. g4 {[%clk 0:00:55.7]} 32... hxg4+ {[%clk 0:01:17.9]} 33.
Kxg4 {[%clk 0:00:55.9]} 33... Rd4 {[%clk 0:01:15.7]} 34. Rxd4 {[%clk 0:00:45.8]}
34... Nxd4 {[%clk 0:01:15.7]} 35. Kg5 {[%clk 0:00:45]} 35... Kg7 {[%clk
0:01:14.4]} 36. Rd3 {[%clk 0:00:41.8]} 36... Rxc4 {[%clk 0:01:14.2]} 0-1

[Event "Late-Titled-Tuesday-Blitz-June-18-2024"]
[Site "Chess.com"]
[Date "2024.06.18"]
[Round "1"]
[White "Matalon"]
[Black "KNVB"]
[Result "1-0"]
[WhiteElo "2469"]
[BlackElo "2792"]
[TimeControl "180+1"]
[EndTime "14:05:44 PDT"]
[Termination "Matalon won on time"]

1. e4 {[%clk 0:02:59]} 1... e5 {[%clk 0:02:55.4]} 2. Nf3 {[%clk 0:02:58.7]} 2...
Nc6 {[%clk 0:02:48.1]} 3. Bb5 {[%clk 0:02:59.1]} 3... Qf6 {[%clk 0:02:43.5]} 4.
O-O {[%clk 0:02:50.1]} 4... Bc5 {[%clk 0:02:42.9]} 5. c3 {[%clk 0:02:49.1]} 5...
Nge7 {[%clk 0:02:41.8]} 6. Re1 {[%clk 0:02:42.1]} 6... a6 {[%clk 0:02:36.6]} 7.
Ba4 {[%clk 0:02:38.5]} 7... h6 {[%clk 0:02:22.5]} 8. d4 {[%clk 0:02:37.2]} 8...
Bb6 {[%clk 0:02:22.9]} 9. Be3 {[%clk 0:02:29.3]} 9... O-O {[%clk 0:02:15.2]} 10.
dxe5 {[%clk 0:02:24.7]} 10... Nxe5 {[%clk 0:02:14.4]} 11. Nxe5 {[%clk
0:02:23.5]} 11... Bxe3 {[%clk 0:02:12.8]} 12. Ng4 {[%clk 0:02:19.9]} 12... Bxf2+
{[%clk 0:01:46.2]} 13. Nxf2 {[%clk 0:02:19.4]} 13... d6 {[%clk 0:01:47.1]} 14.
Nd2 {[%clk 0:02:17.7]} 14... Ng6 {[%clk 0:01:44]} 15. Nf3 {[%clk 0:02:16.5]}
15... c6 {[%clk 0:01:22.6]} 16. Qd4 {[%clk 0:02:13.7]} 16... Qe7 {[%clk
0:01:13.8]} 17. Rad1 {[%clk 0:02:12.4]} 17... Rd8 {[%clk 0:01:14.1]} 18. Bb3
{[%clk 0:02:08.1]} 18... Be6 {[%clk 0:00:48.6]} 19. Qd2 {[%clk 0:01:58.4]} 19...
Bxb3 {[%clk 0:00:26.8]} 20. axb3 {[%clk 0:01:57.3]} 20... Qf6 {[%clk 0:00:27.5]}
21. Ng4 {[%clk 0:01:40.8]} 21... Qe6 {[%clk 0:00:26.3]} 22. h3 {[%clk
0:01:35.5]} 22... Qxb3 {[%clk 0:00:25.8]} 23. Nd4 {[%clk 0:01:35.6]} 23... Qc4
{[%clk 0:00:20.9]} 24. Nf5 {[%clk 0:01:32.8]} 24... h5 {[%clk 0:00:10.5]} 25.
Nf6+ {[%clk 0:01:22.4]} 25... Kf8 {[%clk 0:00:10.3]} 26. Nxh5 {[%clk 0:01:21.4]}
26... Qc5+ {[%clk 0:00:02.1]} 27. Qd4 {[%clk 0:01:19.9]} 1-0

[Event "Late-Titled-Tuesday-Blitz-June-18-2024"]
[Site "Chess.com"]
[Date "2024.06.18"]
[Round "1"]
[White "patzer-reloaded"]
[Black "nochewycandy"]
[Result "0-1"]
[WhiteElo "2461"]
[BlackElo "2815"]
[TimeControl "180+1"]
[EndTime "14:05:45 PDT"]
[Termination "nochewycandy won on time"]

1. d3 {[%clk 0:02:59.2]} 1... g6 {[%clk 0:02:59.5]} 2. Nf3 {[%clk 0:02:57.5]}
2... Bg7 {[%clk 0:02:59.7]} 3. g3 {[%clk 0:02:58.1]} 3... c5 {[%clk 0:03:00.1]}
4. Bg2 {[%clk 0:02:58.5]} 4... Nc6 {[%clk 0:03:00.9]} 5. O-O {[%clk 0:02:58.7]}
5... e5 {[%clk 0:03:01.5]} 6. c4 {[%clk 0:02:59.1]} 6... Nge7 {[%clk 0:03:02]}
7. Nc3 {[%clk 0:02:59.5]} 7... O-O {[%clk 0:03:02.6]} 8. Rb1 {[%clk 0:02:55]}
8... d6 {[%clk 0:03:01.4]} 9. a3 {[%clk 0:02:53.8]} 9... a5 {[%clk 0:03:02.1]}
10. b3 {[%clk 0:02:53.6]} 10... h6 {[%clk 0:02:56.8]} 11. Bb2 {[%clk 0:02:53.3]}
11... Be6 {[%clk 0:02:56.2]} 12. e3 {[%clk 0:02:50.8]} 12... d5 {[%clk
0:02:54.1]} 13. cxd5 {[%clk 0:02:48.4]} 13... Nxd5 {[%clk 0:02:55]} 14. Ne4
{[%clk 0:02:47.5]} 14... b6 {[%clk 0:02:52.8]} 15. Qe2 {[%clk 0:02:45.2]} 15...
Qe7 {[%clk 0:02:26.7]} 16. Rfd1 {[%clk 0:02:43.3]} 16... Rfd8 {[%clk 0:02:26.6]}
17. Rbc1 {[%clk 0:02:22]} 17... Nc7 {[%clk 0:02:19.4]} 18. Ned2 {[%clk
0:02:13.8]} 18... Bd5 {[%clk 0:02:10.3]} 19. Nc4 {[%clk 0:01:27.1]} 19... Rab8
{[%clk 0:01:57.1]} 20. h4 {[%clk 0:01:20.4]} 20... Qe6 {[%clk 0:01:48.1]} 21. h5
{[%clk 0:01:16.5]} 21... g5 {[%clk 0:01:48]} 22. Nfd2 {[%clk 0:00:54.8]} 22...
Bxg2 {[%clk 0:01:46.8]} 23. Kxg2 {[%clk 0:00:55.7]} 23... b5 {[%clk 0:01:45]}
24. Nxa5 {[%clk 0:00:45.4]} 24... Nxa5 {[%clk 0:01:45.9]} 25. Rxc5 {[%clk
0:00:44]} 25... Na6 {[%clk 0:01:46.4]} 26. Rc3 {[%clk 0:00:39.4]} 26... b4
{[%clk 0:01:44.5]} 27. axb4 {[%clk 0:00:36.1]} 27... Nxb4 {[%clk 0:01:45.4]} 28.
Nc4 {[%clk 0:00:30.6]} 28... Nxc4 {[%clk 0:01:38.3]} 29. Rxc4 {[%clk 0:00:25.7]}
29... Nd5 {[%clk 0:01:32.1]} 30. Qc2 {[%clk 0:00:20.6]} 30... Nf6 {[%clk
0:01:32.2]} 31. Rc6 {[%clk 0:00:15.6]} 31... Qd5+ {[%clk 0:01:30.6]} 32. e4
{[%clk 0:00:14.7]} 32... Nxe4 {[%clk 0:01:31.3]} 0-1

[Event "Late-Titled-Tuesday-Blitz-June-18-2024"]
[Site "Chess.com"]
[Date "2024.06.18"]
[Round "1"]
[White "nitpicker"]
[Black "DryCounty"]
[Result "0-1"]
[WhiteElo "2346"]
[BlackElo "2650"]
[TimeControl "180+1"]
[EndTime "14:05:48 PDT"]
[Termination "DryCounty won by checkmate"]

1. d4 {[%clk 0:03:00.3]} 1... Nf6 {[%clk 0:02:58.8]} 2. c4 {[%clk 0:02:59.9]}
2... g6 {[%clk 0:02:57]} 3. Nc3 {[%clk 0:02:59.7]} 3... Bg7 {[%clk 0:02:50.5]}
4. e4 {[%clk 0:02:59.8]} 4... d6 {[%clk 0:02:49.4]} 5. Be2 {[%clk 0:03:00.2]}
5... O-O {[%clk 0:02:47.3]} 6. Nf3 {[%clk 0:03:00.1]} 6... e5 {[%clk 0:02:46.5]}
7. O-O {[%clk 0:02:59.7]} 7... c6 {[%clk 0:02:45.9]} 8. h3 {[%clk 0:02:43.4]}
8... exd4 {[%clk 0:02:44.8]} 9. Nxd4 {[%clk 0:02:43.1]} 9... Re8 {[%clk
0:02:43]} 10. Bf3 {[%clk 0:02:40.8]} 10... Nbd7 {[%clk 0:02:41.3]} 11. Nb3
{[%clk 0:02:33.3]} 11... Ne5 {[%clk 0:02:37.5]} 12. Be2 {[%clk 0:02:31.3]} 12...
Be6 {[%clk 0:02:38]} 13. Nd2 {[%clk 0:02:29]} 13... d5 {[%clk 0:02:29.1]} 14.
cxd5 {[%clk 0:02:20.6]} 14... cxd5 {[%clk 0:02:28]} 15. f4 {[%clk 0:02:20.5]}
15... Nc4 {[%clk 0:02:10.2]} 16. Nxc4 {[%clk 0:02:00.2]} 16... dxc4 {[%clk
0:02:10]} 17. Be3 {[%clk 0:01:56.1]} 17... Nxe4 {[%clk 0:01:51.2]} 18. Nxe4
{[%clk 0:01:41.7]} 18... Bf5 {[%clk 0:01:51.1]} 19. Nd6 {[%clk 0:01:26.7]} 19...
Rxe3 {[%clk 0:01:48.6]} 20. Nxf5 {[%clk 0:01:24]} 20... Qxd1 {[%clk 0:01:38.5]}
21. Bxd1 {[%clk 0:01:24]} 21... gxf5 {[%clk 0:01:37.5]} 22. Rb1 {[%clk
0:01:23.4]} 22... Rd8 {[%clk 0:01:30.7]} 23. Bf3 {[%clk 0:00:57.2]} 23... Rd2
{[%clk 0:01:22.4]} 24. Rf2 {[%clk 0:00:52.5]} 24... Red3 {[%clk 0:01:14.9]} 25.
Be2 {[%clk 0:00:36.5]} 25... Bd4 {[%clk 0:01:10.3]} 26. Bxd3 {[%clk 0:00:20.5]}
26... Bxf2+ {[%clk 0:01:09.9]} 27. Kf1 {[%clk 0:00:21.3]} 27... cxd3 {[%clk
0:01:09.9]} 28. Rc1 {[%clk 0:00:19.2]} 28... Bd4 {[%clk 0:01:03.2]} 29. Rc8+
{[%clk 0:00:18.4]} 29... Kg7 {[%clk 0:01:03.3]} 30. b3 {[%clk 0:00:18.3]} 30...
Rd1# {[%clk 0:01:03]} 0-1